bitfinex/quotes_SOLUSD_20240727
["timestamp","ask_amount","ask_price","bid_price","bid_amount"]
[1722110413992,0.17,181.76,181.66,16.149]
[1722110414410,5.6717,181.76,181.63,6.5597]
[1722110414905,0.17,181.76,181.63,6.5597]
[1722110415427,0.17,181.77,181.63,6.5597]
[1722110415610,20.17,181.77,181.63,6.5597]
[1722110415811,25.6714,181.77,181.64,65.0]
[1722110416021,5.5018,181.76,181.64,65.0]
[1722110416324,5.5023,181.74,181.63,6.5597]
[1722110416510,5.5023,181.74,181.61,16.149]
[1722110416916,0.17,181.73,181.61,16.149]
[1722110417633,25.6727,181.73,181.61,16.149]
[1722110418214,0.17,181.73,181.61,16.149]
[1722110418415,0.17,181.74,181.61,16.149]
[1722110418830,20.17,181.74,181.62,65.0]
[1722110419033,25.6723,181.74,181.62,65.0]
[1722110419423,20.0,181.77,181.63,0.17]
[1722110419726,25.5014,181.77,181.63,0.17]
[1722110420031,20.0,181.75,181.62,65.0]
[1722110420238,25.5022,181.75,181.62,65.0]
[1722110420441,0.17,181.74,181.62,65.0]
[1722110421239,20.0,181.73,181.62,65.0]
[1722110421535,0.17,181.72,181.62,20.0]
[1722110421832,20.0,181.75,181.62,20.0]
[1722110422018,0.17,181.73,181.62,20.0]
[1722110422218,25.5021,181.75,181.62,20.0]
[1722110422403,0.17,181.74,181.62,20.0]
[1722110422914,20.0,181.73,181.62,20.0]
[1722110423249,20.0,181.75,181.62,20.0]
[1722110423408,20.0,181.75,181.63,45.0]
[1722110423409,0.17,181.74,181.63,45.0]
[1722110423606,5.6723,181.74,181.63,45.0]
[1722110423927,5.5026,181.73,181.63,45.0]
[1722110424125,5.5029,181.72,181.61,16.149]
[1722110424431,20.0,181.73,181.59,6.5597]
[1722110424432,22.0154,181.71,181.59,6.5597]
[1722110424615,22.0154,181.71,181.6,20.0]
[1722110424928,16.5121,181.71,181.6,20.0]
[1722110425526,16.3421,181.71,181.61,45.0]
[1722110425737,22.07328335,181.76,181.62,20.34]
[1722110425921,16.3421,181.8,181.63,61.149]
[1722110426233,16.3421,181.8,181.64,0.34]
[1722110426234,0.95932076,181.79,181.64,0.34]
[1722110426416,26.46012076,181.79,181.64,20.34]
[1722110426729,16.3421,181.8,181.65,45.0]
[1722110426912,16.3421,181.8,181.66,26.8997]
[1722110427110,25.5009,181.79,181.67,45.0]
[1722110427329,0.17,181.78,181.68,20.0]
[1722110427527,5.6711,181.78,181.69,45.0]
[1722110427831,5.6711,181.78,181.68,20.0]
[1722110427832,5.5016,181.77,181.68,20.0]
[1722110428037,16.3421,181.8,181.67,20.0]
[1722110428243,0.17,181.79,181.68,45.0]
[1722110429125,0.17,181.79,181.69,20.0]
[1722110429425,6.68427494,181.82,181.7,45.0]
[1722110429620,0.95923873,181.82,181.71,20.0]
[1722110429825,16.3421,181.85,181.72,61.319]
[1722110430031,16.3421,181.85,181.73,20.0]
[1722110430231,6.45766726,181.86,181.73,20.0]
[1722110430416,6.45766726,181.86,181.74,45.0]
[1722110430613,0.95896726,181.86,181.74,45.0]
[1722110430949,5.5012,181.78,181.67,16.149]
[1722110431133,5.5008,181.8,181.68,20.0]
[1722110431324,20.0,181.82,181.68,20.0]
[1722110431644,20.0,181.82,181.67,16.149]
[1722110431645,20.0,181.79,181.67,16.149]
[1722110431833,5.5014,181.78,181.67,16.149]
[1722110432030,5.6714,181.78,181.67,16.149]
[1722110432215,5.5021,181.75,181.67,16.149]
[1722110432422,0.17,181.78,181.67,16.149]
[1722110432617,26.2096,181.77,181.62,21.6587]
[1722110432818,5.5023,181.74,181.62,21.6587]
[1722110433044,0.17,181.76,181.62,21.6587]
[1722110433346,15.0408,181.8,181.62,56.0687]
[1722110433837,35.0408,181.8,181.62,39.5387]
[1722110434145,20.0,181.78,181.63,20.0]
[1722110434842,5.5017,181.76,181.63,20.0]
[1722110435544,5.5017,181.76,181.64,45.0]
[1722110435719,5.5017,181.76,181.65,20.0]
[1722110435915,5.5021,181.75,181.66,45.0]
[1722110436122,20.0,181.74,181.62,21.6587]
[1722110436321,25.5032,181.72,181.62,21.6587]
[1722110436735,5.5032,181.72,181.62,21.6587]
[1722110436935,0.17,181.71,181.62,21.6587]
[1722110437138,6.2096,181.73,181.62,21.6587]
[1722110437340,20.0,181.72,181.62,21.6587]
[1722110437534,5.5033,181.71,181.62,21.6587]
[1722110438127,5.5037,181.7,181.62,21.6587]
[1722110438327,20.17,181.72,181.62,15.2231]
[1722110438548,5.5039,181.69,181.58,21.6587]
[1722110438935,0.17,181.68,181.58,21.6587]
[1722110439133,20.17,181.68,181.58,21.6587]
[1722110439359,5.5059,181.63,181.49,15.2231]
[1722110439648,25.5054,181.64,181.49,15.2231]
[1722110440059,0.17,181.63,181.49,15.2231]
[1722110440233,5.6758,181.63,181.49,15.2231]
[1722110440553,0.17,181.63,181.49,15.2231]
[1722110440738,5.5063,181.61,181.49,15.2231]
[1722110440945,5.5067,181.6,181.49,15.2231]
[1722110441452,5.5071,181.59,181.49,15.2231]
[1722110441625,0.17,181.58,181.49,15.2231]
[1722110442059,5.5078,181.57,181.49,15.2231]
[1722110443154,5.6772,181.58,181.49,15.2231]
[1722110443454,0.17,181.58,181.49,15.2231]
[1722110443653,35.0408,181.62,181.49,15.2231]
[1722110443955,20.0,181.58,181.49,15.2231]
[1722110444144,20.0,181.58,181.44,21.6587]
[1722110444339,0.17,181.57,181.44,21.6587]
[1722110444546,20.0,181.54,181.44,21.6587]
[1722110444744,5.509,181.52,181.38,21.6587]
[1722110444952,5.5096,181.5,181.38,21.6587]
[1722110445142,25.5096,181.5,181.38,21.6587]
[1722110445453,35.0408,181.52,181.38,21.6587]
[1722110445634,0.17,181.51,181.38,21.6587]
[1722110445965,5.6794,181.51,181.38,21.6587]
[1722110446132,0.17,181.51,181.38,21.6587]
[1722110446455,20.17,181.51,181.38,21.6587]
[1722110446654,0.17,181.51,181.38,21.6587]
[1722110447159,20.0,181.49,181.38,21.6587]
[1722110447460,5.6805,181.48,181.38,21.6587]
[1722110448058,0.17,181.48,181.38,21.6587]
[1722110448249,5.5109,181.46,181.38,6.4356]
[1722110448563,0.17,181.45,181.38,6.4356]
[1722110448756,5.5108,181.46,181.33,15.2231]
[1722110448963,0.17,181.45,181.33,21.6587]
[1722110449162,5.5115,181.44,181.33,21.6587]
[1722110449372,5.5121,181.42,181.33,15.2231]
[1722110449588,20.0,181.4,181.27,6.4356]
[1722110449762,20.0,181.4,181.28,15.2231]
[1722110449956,25.5128,181.4,181.28,15.2231]
[1722110450172,0.17,181.39,181.28,15.2231]
[1722110450469,20.0,181.38,181.28,15.2231]
[1722110450974,20.17,181.38,181.28,15.2231]
[1722110452057,20.17,181.38,181.27,6.4356]
[1722110452257,20.17,181.38,181.23,22.3388]
[1722110452760,20.17,181.38,181.19,0.7653185]
[1722110452761,5.5158,181.3,181.19,0.7653185]
[1722110453067,25.5161,181.29,181.19,0.7653185]
[1722110453274,5.5164,181.28,181.19,0.7653185]
[1722110453759,0.17,181.27,181.19,0.7653185]
[1722110453953,0.17,181.28,181.19,0.7653185]
[1722110454160,20.0,181.27,181.19,0.7653185]
[1722110454472,20.0,181.31,181.19,0.7653185]
[1722110454473,20.0,181.24,181.19,0.7653185]
[1722110454644,5.5173,181.25,181.19,0.7653185]
[1722110454847,20.0,181.28,181.19,0.7653185]
[1722110455047,25.517,181.26,181.19,0.7653185]
[1722110455570,0.17,181.25,181.19,0.7653185]
[1722110455955,20.0,181.28,181.19,0.7653185]
[1722110456377,20.0,181.3,181.19,0.7653185]
[1722110456547,20.0,181.33,181.19,0.7653185]
[1722110456548,0.17,181.29,181.19,0.7653185]
[1722110457046,20.0,181.33,181.19,0.7653185]
[1722110457245,20.0,181.36,181.19,0.7653185]
[1722110457555,5.5142,181.35,181.19,0.7653185]
[1722110457758,20.0,181.34,181.19,0.7653185]
[1722110458276,5.5148,181.33,181.19,0.7653185]
[1722110458575,20.0,181.34,181.19,0.7653185]
[1722110458747,25.5141,181.36,181.2,6.6505]
[1722110459080,25.5139,181.36,181.21,65.0]
[1722110459380,25.5139,181.36,181.22,0.17]
[1722110459381,20.0,181.36,181.22,0.17]
[1722110459557,20.0,181.34,181.21,65.0]
[1722110459755,20.0,181.37,181.21,65.0]
[1722110460050,25.74230498,181.39,181.22,0.17]
[1722110460251,0.96145866,181.4,181.22,0.17]
[1722110460472,5.5129,181.39,181.22,0.34]
[1722110460860,6.47415866,181.4,181.22,0.34]
[1722110461167,20.0,181.41,181.22,0.34]
[1722110461476,20.0,181.39,181.22,0.34]
[1722110461777,5.5148,181.33,181.21,20.0]
[1722110461977,20.0,181.34,181.21,20.0]
[1722110462274,20.0,181.37,181.21,20.0]
[1722110462454,20.0,181.35,181.21,20.0]
[1722110462657,5.5143,181.35,181.21,20.0]
[1722110462879,20.0,181.37,181.21,20.0]
[1722110462880,0.17,181.34,181.21,20.0]
[1722110463086,25.5138,181.37,181.21,20.0]
[1722110463592,0.17,181.36,181.21,20.0]
[1722110463764,0.17,181.36,181.22,45.17]
[1722110464088,0.17,181.36,181.23,20.0]
[1722110464258,6.47142282,181.4,181.24,45.34]
[1722110464467,0.95872282,181.4,181.25,20.0]
[1722110464667,5.5121,181.42,181.26,45.34]
[1722110464868,5.5116,181.44,181.28,6.6505]
[1722110465097,0.95877224,181.42,181.3,15.6883]
[1722110465264,0.95877224,181.42,181.31,65.17]
[1722110465463,5.5112,181.45,181.31,65.17]
[1722110465666,5.5116,181.44,181.31,65.17]
[1722110466177,0.95882549,181.45,181.31,65.17]
[1722110466592,5.5104,181.48,181.32,0.17]
[1722110466777,6.46930163,181.47,181.32,0.17]
[1722110467369,5.511,181.46,181.32,0.17]
[1722110467692,5.5104,181.48,181.32,0.17]
[1722110468083,0.95863162,181.49,181.32,0.17]
[1722110468469,5.5103,181.48,181.32,0.17]
[1722110468667,0.95863162,181.49,181.32,0.17]
[1722110469203,0.95863162,181.49,181.34,16.53]
[1722110469375,0.95863162,181.49,181.35,65.34]
[1722110469589,6.46863162,181.49,181.35,65.34]
[1722110469776,5.511,181.46,181.35,65.0]
[1722110470082,0.95863162,181.49,181.35,65.0]
[1722110470277,5.73736661,181.52,181.36,0.34]
[1722110470906,0.95846426,181.53,181.37,15.6883]
[1722110471105,5.5083,181.55,181.39,6.6505]
[1722110471299,5.5083,181.55,181.4,65.34]
[1722110471791,5.5085,181.54,181.4,65.34]
[1722110471997,20.0,181.55,181.4,65.34]
[1722110472298,20.0,181.53,181.4,65.17]
[1722110472483,0.17,181.52,181.4,65.0]
[1722110472682,20.0,181.51,181.4,20.0]
[1722110472885,5.5107,181.47,181.39,6.6505]
[1722110473084,20.0,181.47,181.39,6.6505]
[1722110473595,20.0,181.47,181.37,15.6883]
[1722110473596,0.17,181.46,181.37,15.6883]
[1722110473896,5.5123,181.42,181.34,6.4042]
[1722110474081,20.0,181.42,181.34,6.4042]
[1722110474281,5.5129,181.4,181.32,15.4509]
[1722110474495,33.7784,181.45,181.32,15.4509]
[1722110474496,20.0,181.41,181.32,15.4509]
[1722110474701,33.7784,181.45,181.29,6.4042]
[1722110474702,5.5133,181.38,181.29,6.4042]
[1722110474879,20.0,181.39,181.29,6.4042]
[1722110475195,20.0,181.39,181.19,19.42962882]
[1722110475196,5.5151,181.32,181.24,6.4042]
[1722110475920,0.17,181.33,181.24,6.4042]
[1722110476290,20.0,181.39,181.24,6.4042]
[1722110476601,0.17,181.38,181.24,6.4042]
[1722110476904,5.5126,181.41,181.24,6.4042]
[1722110477080,20.0,181.43,181.25,45.0]
[1722110477403,20.0,181.34,181.24,6.4042]
[1722110477983,5.5155,181.31,181.24,6.4042]
[1722110478309,20.0,181.34,181.24,6.4042]
[1722110478487,5.5155,181.31,181.24,6.4042]
[1722110478804,5.5151,181.32,181.24,6.4042]
[1722110479103,0.17,181.33,181.24,6.4042]
[1722110479687,5.5154,181.31,181.24,6.4042]
[1722110479884,0.17,181.3,181.24,6.4042]
[1722110480291,5.5154,181.31,181.24,6.4042]
[1722110480501,0.17,181.3,181.24,6.4042]
[1722110480989,20.0,181.32,181.24,6.4042]
[1722110481196,0.17,181.31,181.24,6.4042]
[1722110481904,25.73283922,181.36,181.25,45.0]
[1722110482085,0.17,181.35,181.25,45.0]
[1722110482289,20.0,181.38,181.25,45.0]
[1722110482495,0.17,181.37,181.25,45.0]
[1722110482820,27.76334054,181.59,181.25,45.0]
[1722110482821,5.73515963,181.41,181.26,20.0]
[1722110482988,5.5119,181.43,181.27,45.0]
[1722110483183,5.5128,181.4,181.28,20.17]
[1722110483379,20.0,181.39,181.29,45.0]
[1722110483686,20.0,181.4,181.29,45.0]
[1722110483893,20.0,181.38,181.29,45.0]
[1722110484201,5.6836,181.37,181.29,45.0]
[1722110484412,0.17,181.37,181.29,45.0]
[1722110484805,25.5131,181.39,181.29,45.0]
[1722110484984,5.6833,181.38,181.29,45.0]
[1722110485181,20.0,181.37,181.29,45.0]
[1722110485510,16.53,181.51,181.24,6.4042]
[1722110485511,20.0,181.34,181.24,6.4042]
[1722110485706,5.5154,181.31,181.24,6.4042]
[1722110486901,20.0,181.36,181.24,6.4042]
[1722110487208,5.5145,181.34,181.24,6.4042]
[1722110487414,25.5141,181.36,181.24,6.4042]
[1722110487610,5.5141,181.36,181.25,65.0]
[1722110487790,0.17,181.35,181.25,65.0]
[1722110488488,5.5151,181.32,181.25,65.0]
[1722110488683,20.0,181.35,181.25,45.0]
[1722110488929,33.7827,181.39,181.24,6.4042]
[1722110488930,5.5154,181.31,181.24,6.4042]
[1722110489268,5.5161,181.29,181.24,6.4042]
[1722110490021,20.0,181.35,181.24,6.4042]
[1722110490221,5.515,181.33,181.24,6.4042]
[1722110490510,5.5154,181.31,181.24,6.4042]
[1722110490711,5.5158,181.3,181.24,6.4042]
[1722110491007,5.516,181.29,181.24,6.4042]
[1722110491206,5.6855,181.31,181.24,6.4042]
[1722110491394,5.5149,181.33,181.25,45.0]
[1722110491596,0.95951801,181.33,181.25,45.0]
[1722110491800,33.7843,181.37,181.25,45.0]
[1722110492118,20.0,181.35,181.25,45.0]
[1722110492287,5.515,181.33,181.25,45.0]
[1722110492488,0.95938801,181.36,181.25,45.0]
[1722110492724,5.5148,181.33,181.25,45.0]
[1722110492884,0.95938801,181.36,181.25,45.0]
[1722110493092,5.5145,181.34,181.25,45.0]
[1722110493512,5.5148,181.33,181.25,45.0]
[1722110493685,5.5143,181.35,181.25,45.0]
[1722110494408,0.95938801,181.36,181.26,0.17]
[1722110494616,0.95938801,181.36,181.26,20.17]
[1722110494792,0.95938801,181.36,181.27,45.0]
[1722110494994,5.5146,181.34,181.27,45.0]
[1722110495191,0.95938801,181.36,181.27,45.0]
[1722110495792,20.95938801,181.36,181.27,45.0]
[1722110495998,5.74553035,181.41,181.29,15.1845]
[1722110496194,5.74553035,181.41,181.3,65.17]
[1722110496400,6.1948,181.49,181.3,65.17]
[1722110496600,20.0,181.46,181.31,0.17]
[1722110496912,20.0,181.44,181.3,65.17]
[1722110497098,5.5129,181.4,181.3,65.0]
[1722110497685,20.0,181.44,181.3,65.0]
[1722110498115,13.7756,181.48,181.3,65.0]
[1722110498116,5.5119,181.43,181.3,65.0]
[1722110498431,13.7756,181.48,181.31,0.34]
[1722110498904,25.74368495,181.49,181.33,15.1845]
[1722110499221,5.5107,181.47,181.34,65.34]
[1722110499788,20.0,181.47,181.34,65.17]
[1722110499992,20.0,181.43,181.34,20.0]
[1722110500191,20.0,181.41,181.33,15.1845]
[1722110500415,0.17,181.4,181.33,15.1845]
[1722110500629,0.17,181.4,181.32,6.5763]
[1722110500630,5.5143,181.35,181.32,6.5763]
[1722110500828,5.5138,181.37,181.32,6.5763]
[1722110501136,5.5142,181.35,181.32,6.5763]
[1722110501306,0.17,181.4,181.32,6.5763]
[1722110501503,5.5142,181.35,181.32,6.5763]
[1722110501813,20.0,181.37,181.28,21.7608]
[1722110502015,5.5154,181.31,181.2,21.7608]
[1722110502218,5.515,181.33,181.2,21.7608]
[1722110502402,0.17,181.4,181.2,21.7608]
[1722110502603,5.5137,181.37,181.21,6.5763]
[1722110503339,5.5132,181.39,181.23,21.7608]
[1722110503634,5.5133,181.38,181.24,65.34]
[1722110504131,5.5134,181.38,181.24,65.34]
[1722110504425,20.0,181.41,181.26,6.5763]
[1722110504627,20.0,181.39,181.26,6.5763]
[1722110504833,5.5151,181.32,181.26,6.5763]
[1722110505130,20.0,181.35,181.26,6.5763]
[1722110505308,5.5148,181.33,181.26,6.5763]
[1722110505704,20.0,181.36,181.26,6.5763]
[1722110505903,5.515,181.33,181.26,6.5763]
[1722110506111,5.5129,181.4,181.26,6.5763]
[1722110506430,20.0,181.4,181.27,65.0]
[1722110506732,20.0,181.37,181.27,45.0]
[1722110507515,5.5149,181.33,181.27,45.0]
[1722110507725,5.5154,181.31,181.27,45.0]
[1722110507931,13.7836,181.38,181.27,45.0]
[1722110508123,5.5146,181.34,181.27,45.0]
[1722110508524,20.0,181.4,181.27,45.0]
[1722110508838,0.17,181.39,181.28,20.0]
[1722110509050,5.5142,181.35,181.29,45.0]
[1722110509515,5.5148,181.33,181.29,45.0]
[1722110509927,5.5137,181.37,181.29,45.0]
[1722110510241,5.5148,181.33,181.29,45.0]
[1722110510617,33.7838,181.38,181.26,6.5763]
[1722110510816,20.0,181.36,181.26,6.5763]
[1722110511136,33.7838,181.38,181.26,6.5763]
[1722110511334,33.7803,181.42,181.26,6.5763]
[1722110511828,20.0,181.4,181.27,45.17]
[1722110512031,33.7803,181.42,181.27,45.0]
[1722110512217,13.7803,181.42,181.27,45.0]
[1722110512408,20.0,181.41,181.27,45.0]
[1722110512624,5.5139,181.36,181.27,45.0]
[1722110513029,5.5134,181.38,181.27,45.0]
[1722110513223,5.5136,181.37,181.28,20.17]
[1722110513431,5.5136,181.37,181.29,45.0]
[1722110513627,5.5139,181.36,181.29,45.0]
[1722110514145,5.5142,181.35,181.29,45.0]
[1722110514311,5.5138,181.37,181.29,45.0]
[1722110514513,5.5139,181.36,181.29,45.0]
[1722110515214,13.7803,181.42,181.29,45.0]
[1722110515412,20.17,181.41,181.29,45.0]
[1722110515616,5.5145,181.34,181.29,45.0]
[1722110515920,33.7826,181.39,181.28,20.0]
[1722110516121,5.5147,181.34,181.27,20.0]
[1722110516318,5.5142,181.35,181.27,20.0]
[1722110516721,5.5145,181.34,181.27,20.0]
[1722110516925,13.7851,181.36,181.26,6.5763]
[1722110517141,0.17,181.35,181.26,6.5763]
[1722110517516,5.5154,181.31,181.26,6.5763]
[1722110517735,5.515,181.33,181.26,6.5763]
[1722110518042,5.5152,181.32,181.26,6.5763]
[1722110518334,5.5152,181.32,181.27,45.0]
[1722110519135,20.17,181.35,181.27,45.0]
[1722110519331,20.17,181.35,181.28,1.10319199]
[1722110519542,5.5141,181.36,181.27,45.0]
[1722110519918,5.5143,181.35,181.27,45.0]
[1722110520112,5.5145,181.34,181.27,45.0]
[1722110520337,20.0,181.39,181.27,45.0]
[1722110520540,20.0,181.39,181.27,46.1030416]
[1722110520743,0.95983054,181.36,181.27,46.1030416]
[1722110521035,5.5142,181.35,181.27,45.0]
[1722110521338,13.7821,181.4,181.27,45.0]
[1722110521339,0.95979338,181.38,181.27,45.0]
[1722110521550,0.95979338,181.38,181.28,20.17]
[1722110521841,0.95974634,181.4,181.29,45.0]
[1722110522215,5.5142,181.35,181.29,45.0]
[1722110522420,20.95974634,181.4,181.29,45.0]
[1722110522733,5.5163,181.29,181.26,6.5763]
[1722110523042,13.7857,181.35,181.26,6.5763]
[1722110523746,5.5154,181.31,181.26,6.5763]
[1722110523932,33.7857,181.35,181.26,6.5763]
[1722110524238,5.5154,181.31,181.27,45.0]
[1722110524743,5.5152,181.32,181.27,45.0]
[1722110525319,5.5154,181.31,181.27,45.0]
[1722110525730,13.7857,181.35,181.27,45.0]
[1722110525924,5.5154,181.31,181.27,45.0]
[1722110526540,5.515,181.33,181.27,45.0]
[1722110526774,0.17,181.36,181.27,46.10306332]
[1722110527057,20.0,181.38,181.27,46.10306332]
[1722110527231,20.0,181.38,181.27,45.0]
[1722110527833,5.5141,181.36,181.27,45.0]
[1722110528721,5.5136,181.37,181.28,20.0]
[1722110528935,5.5145,181.34,181.29,45.0]
[1722110529139,5.5141,181.36,181.29,45.0]
[1722110529536,0.95974634,181.4,181.31,15.8528]
[1722110529754,13.7787,181.44,181.32,45.0]
[1722110529945,0.95933894,181.43,181.32,45.0]
[1722110530147,20.0,181.42,181.32,45.0]
[1722110530449,0.95933894,181.43,181.32,45.0]
[1722110530450,5.5129,181.4,181.32,45.0]
[1722110530958,5.5123,181.41,181.33,0.17]
[1722110531137,5.5126,181.4,181.33,0.17]
[1722110531325,5.5122,181.42,181.33,0.17]
[1722110531524,0.95927596,181.44,181.33,20.17]
[1722110531741,33.7751,181.49,181.35,6.1524]
[1722110531944,5.5123,181.41,181.35,6.1524]
[1722110532153,0.95916098,181.47,181.35,6.1524]
[1722110532154,20.0,181.45,181.36,45.0]
[1722110532536,5.513,181.39,181.35,6.1524]
[1722110532735,20.0,181.45,181.35,6.1524]
[1722110533044,5.513,181.39,181.35,6.1524]
[1722110533952,5.5131,181.39,181.36,45.0]
[1722110534154,33.7797,181.43,181.35,6.1524]
[1722110534328,0.95916098,181.47,181.36,45.0]
[1722110534529,5.5124,181.41,181.36,45.0]
[1722110534739,5.5114,181.45,181.36,45.0]
[1722110534936,5.5108,181.46,181.37,15.8029]
[1722110535233,0.95916098,181.47,181.38,45.0]
[1722110535434,6.46996098,181.47,181.38,45.0]
[1722110535630,0.95916098,181.47,181.38,45.0]
[1722110536631,5.5112,181.45,181.38,45.0]
[1722110537336,6.46996098,181.47,181.38,45.0]
[1722110537547,0.95916098,181.47,181.38,45.0]
[1722110537741,0.95916098,181.47,181.39,20.17]
[1722110537946,5.5099,181.49,181.4,45.0]
[1722110538346,0.95893253,181.51,181.4,45.0]
[1722110538654,20.0,181.5,181.4,45.0]
[1722110538858,5.5111,181.46,181.4,45.0]
[1722110539451,5.5106,181.47,181.4,45.0]
[1722110539650,5.5102,181.48,181.4,45.0]
[1722110540164,5.5106,181.47,181.4,45.0]
[1722110540469,5.5105,181.47,181.4,45.0]
[1722110540648,0.95893253,181.51,181.4,45.0]
[1722110540846,5.51,181.49,181.4,45.0]
[1722110541059,5.5096,181.5,181.42,6.1524]
[1722110541373,5.5093,181.51,181.43,60.9729]
[1722110541673,13.7701,181.56,181.43,60.9729]
[1722110541674,5.509,181.52,181.43,60.9729]
[1722110542166,5.5088,181.53,181.43,60.9729]
[1722110542371,5.5083,181.55,181.44,20.17]
[1722110542546,5.5084,181.54,181.45,45.17]
[1722110543271,5.5084,181.54,181.46,20.0]
[1722110543475,5.5084,181.54,181.47,45.0]
[1722110543644,0.95869132,181.57,181.47,45.0]
[1722110543844,5.5081,181.55,181.48,6.1524]
[1722110544046,14.72769132,181.57,181.49,45.0]
[1722110544565,57.47208865,181.61,181.49,45.0]
[1722110544968,0.95856973,181.59,181.49,45.0]
[1722110545564,13.7686,181.58,181.49,45.0]
[1722110545769,5.509,181.52,181.49,45.0]
[1722110545969,5.5094,181.51,181.49,45.0]
[1722110546655,20.17,181.57,181.48,6.1524]
[1722110546656,33.7704,181.55,181.48,6.1524]
[1722110546855,5.5098,181.5,181.48,6.1524]
[1722110547171,0.17,181.54,181.48,6.1524]
[1722110547348,34.72626973,181.59,181.49,45.0]
[1722110547550,14.72626973,181.59,181.49,45.0]
[1722110547774,5.5081,181.55,181.49,45.0]
[1722110547965,5.5085,181.54,181.49,45.0]
[1722110548166,5.508,181.56,181.49,45.0]
[1722110548463,0.95856973,181.59,181.49,45.0]
[1722110548670,5.5066,181.61,181.51,15.8029]
[1722110548886,57.4387,181.67,181.52,65.34]
[1722110548887,5.5057,181.63,181.52,65.34]
[1722110549250,5.506,181.62,181.52,65.34]
[1722110549663,20.0,181.65,181.52,65.0]
[1722110549883,5.5066,181.6,181.52,65.0]
[1722110550975,5.5063,181.61,181.52,65.0]
[1722110552552,5.5059,181.63,181.52,65.0]
[1722110552878,5.5061,181.62,181.52,65.0]
[1722110553179,5.5048,181.66,181.54,6.469]
[1722110553481,6.46282245,181.67,181.56,15.0736]
[1722110553680,6.46282245,181.67,181.57,45.0]
[1722110553857,5.5048,181.66,181.57,45.0]
[1722110554180,0.95832245,181.67,181.57,45.0]
[1722110554478,5.5048,181.66,181.57,45.0]
[1722110554869,0.95832245,181.67,181.57,45.0]
[1722110555360,6.46282245,181.67,181.58,20.0]
[1722110555561,6.46282245,181.67,181.59,45.0]
[1722110556083,5.5048,181.66,181.59,45.0]
[1722110556290,0.95832245,181.67,181.59,45.0]
[1722110556469,6.46282245,181.67,181.59,45.0]
[1722110557180,0.95832245,181.67,181.59,45.0]
[1722110557369,0.95832245,181.67,181.6,20.0]
[1722110557563,0.95832245,181.67,181.61,45.0]
[1722110558363,5.5034,181.71,181.62,20.0]
[1722110558575,5.5034,181.71,181.63,45.0]
[1722110558888,5.5034,181.71,181.63,51.469]
[1722110559185,5.5028,181.73,181.63,51.469]
[1722110559480,5.503,181.72,181.64,15.0736]